{"text_format":"1","workbook":"xlsx","n_sheets":1,"sheets":["Darlehen GIG"],"not_rendered":{"charts":0,"images":0,"macros":0,"external_links":1,"defined_names":75,"comments":1,"pivot_tables":0},"unopened":[],"bounds":{"document_bytes":16777216,"sheet_cells":100000,"rows_first":2000,"rows_last":500,"rows_between":2000,"halvings":0,"cell_chars":16384,"cell_head_chars":4096},"cells_cut":0,"cells_raw":0,"read":"whole","date_system":"1900"}

{"sheet":"Darlehen GIG","index":0,"n_rows":58,"n_cols":13,"rows_kept":58,"cut":false,"hidden":false,"merged":[[42,9,43,9],[42,10,43,10],[42,11,43,11],[1,2,1,4],[3,9,4,9],[3,10,4,10],[3,11,4,11],[23,9,24,9],[23,10,24,10],[23,11,24,11]]}
[null,"Darlehen","Gemeinde-Immobiliengesellschaft "]
[null,"Gemeinde"]
[null,"Jahr",2023]
["Konto-",null,null,"Verwendungszweck",null,null,null,"Ursprüngliche","Darlehensrest","Zugang","Tilgung","Zinsen","Darlehensrest"]
["Nummer","Darlehensgeber","Verwendungszweck","Unterabschnitt lt VRV ","Zinssatz *)","Laufzeit","Währung **)","Darlehenshöhe","Jahresanfang",null,null,null,"Jahresende"]
[null,"(Name Kreditinstitut)","(zB Volksschule)","(zB Volksschule = 211)","%","(von-bis)","(EUR, CHF)","(in Euro)","(in Euro)","(in Euro)","(in Euro)","(in Euro)","(in Euro)"]
[null,null,null,null,null,null,null,null,null,null,null,null,{"$f":"I7+J7-K7","v":0}]
[null,null,null,null,null,null,null,null,null,null,null,null,0]
[null,null,null,null,null,null,null,null,null,null,null,null,0]
[null,null,null,null,null,null,null,null,null,null,null,null,0]
[null,null,null,null,null,null,null,null,null,null,null,null,0]
[null,null,null,null,null,null,null,null,null,null,null,null,0]
[null,null,null,null,null,null,null,null,null,null,null,null,0]
[null,null,null,null,null,null,null,null,null,null,null,null,0]
[null,null,null,null,null,null,null,null,null,null,null,null,0]
[]
["Summe",null,null,null,null,null,null,{"$f":"SUM(H7:H15)","v":0},{"$f":"SUM(I7:I15)","v":0},{"$f":"SUM(J7:J15)","v":0},{"$f":"SUM(K7:K15)","v":0},{"$f":"SUM(L7:L15)","v":0},{"$f":"I17+J17-K17","v":0}]
[]
["*) bei Voranschlägen: Zinssatz zum Zeitpunkt der Erstellung des Voranschlages"]
["     bei Rechnungsabschlüssen: Zinssatz zum 31. Dezember des Rechnungsabschlussjahres"]
["**) Angabe der Währung, in der das Darlehen aushaftet"]
["Fortsetzung, Blatt 2"]
["Übertrag Blatt 1",null,null,null,null,null,null,{"$f":"H17","v":0},0,0,0,0,0]
["Konto-",null,null,"Verwendungszweck",null,null,null,"Ursprüngliche","Darlehensrest","Zugang","Tilgung","Zinsen","Darlehensrest"]
["Nummer","Darlehensgeber","Verwendungszweck","Unterabschnitt lt VRV ","Zinssatz *)","Laufzeit","Währung **)","Darlehenshöhe","Jahresanfang",null,null,null,"Jahresende"]
[null,"(Name Kreditinstitut)","(zB Volksschule)","(zB Volksschule = 211)","%","(von-bis)","(EUR, CHF)","(in Euro)","(in Euro)","(in Euro)","(in Euro)","(in Euro)","(in Euro)"]
[null,null,null,null,null,null,null,null,null,null,null,null,{"$f":"I27+J27-K27","v":0}]
[null,null,null,null,null,null,null,null,null,null,null,null,0]
[null,null,null,null,null,null,null,null,null,null,null,null,0]
[null,null,null,null,null,null,null,null,null,null,null,null,0]
[null,null,null,null,null,null,null,null,null,null,null,null,0]
[null,null,null,null,null,null,null,null,null,null,null,null,0]
[null,null,null,null,null,null,null,null,null,null,null,null,0]
[null,null,null,null,null,null,null,null,null,null,null,null,0]
[null,null,null,null,null,null,null,null,null,null,null,null,0]
[null,null,null,null,null,null,null,null,null,null,null,null,0]
[null,null,null,null,null,null,null,null,null,null,null,null,0]
[]
["Summe",null,null,null,null,null,null,{"$f":"SUM(H27:H37)+H23","v":0},{"$f":"SUM(I27:I37)+I23","v":0},{"$f":"SUM(J27:J37)+J23","v":0},{"$f":"SUM(K27:K37)+K23","v":0},{"$f":"SUM(L27:L37)+L23","v":0},{"$f":"I39+J39-K39","v":0}]
[]
["Fortsetzung, Blatt 3"]
["Übertrag Blatt 2",null,null,null,null,null,null,{"$f":"H39","v":0},0,0,0,0,0]
["Konto-",null,null,"Verwendungszweck",null,null,null,"Ursprüngliche","Darlehensrest","Zugang","Tilgung","Zinsen","Darlehensrest"]
["Nummer","Darlehensgeber","Verwendungszweck","Unterabschnitt lt VRV ","Zinssatz *)","Laufzeit","Währung **)","Darlehenshöhe","Jahresanfang",null,null,null,"Jahresende"]
[null,"(Name Kreditinstitut)","(zB Volksschule)","(zB Volksschule = 211)","%","(von-bis)","(EUR, CHF)","(in Euro)","(in Euro)","(in Euro)","(in Euro)","(in Euro)","(in Euro)"]
[null,null,null,null,null,null,null,null,null,null,null,null,{"$f":"I46+J46-K46","v":0}]
[null,null,null,null,null,null,null,null,null,null,null,null,0]
[null,null,null,null,null,null,null,null,null,null,null,null,0]
[null,null,null,null,null,null,null,null,null,null,null,null,0]
[null,null,null,null,null,null,null,null,null,null,null,null,0]
[null,null,null,null,null,null,null,null,null,null,null,null,0]
[null,null,null,null,null,null,null,null,null,null,null,null,0]
[null,null,null,null,null,null,null,null,null,null,null,null,0]
[null,null,null,null,null,null,null,null,null,null,null,null,0]
[null,null,null,null,null,null,null,null,null,null,null,null,0]
[null,null,null,null,null,null,null,null,null,null,null,null,0]
[]
["Summe",null,null,null,null,null,null,{"$f":"SUM(H46:H56)+H42","v":0},{"$f":"SUM(I46:I56)+I42","v":0},{"$f":"SUM(J46:J56)+J42","v":0},{"$f":"SUM(K46:K56)+K42","v":0},{"$f":"SUM(L46:L56)+L42","v":0},{"$f":"I58+J58-K58","v":0}]